Cogmind - Beta 15 @@@ ROGUE MODE // 2025.08.16 @ 22:35:33 Player: winnking222 Result: Destroyed by S-43 Plague with Heavy Machine Gun Performance ------------- Evolutions (8) 4000 Regions Visited (25) 5000 Robots Destroyed (226) 1130 Value Destroyed (12163) 12163 Prototype IDs (43) 860 Alien Tech Used (0) 0 Bonus (8760) 8760 TOTAL SCORE: 31913 Bonus ------- Triggered Max Security 1000 High Alert Combat Kills 1629 Follower Combat Kills 2275 Entered Garrisons 800 Used RIF Installer 2500 Aligned with FarCom 300 Met Data Miner 300 Friendly Fire -44 Cogmind --------- Core Integrity 0/1450 Matter 264/300 Energy 99/100 System Corruption 0% Temperature Cool (0) Movement Core (50) Location -2/Research Parts ------- > --- POWER (3) -------- (None) > --- PROPULSION (6) --- (None) > --- UTILITY (11) ----- (None) > --- WEAPON (3) ------- (None) > --- INVENTORY (5) ---- Light Antimatter Reactor Large Storage Unit Energy Well (350) Advanced Remote Datajack Peak State ------------ > --- POWER ------------ Neutrino Core Reinforced Fission Core Antimatter Reactor > --- PROPULSION ------- Advanced Medium Treads Biometal Medium Treads Advanced Heavy Treads > --- UTILITY ---------- Cryofiber Web Improved Heat Sink Advanced Heat Sink Advanced Heat Sink High-capacity Storage Unit Improved Targeting Computer Advanced Weapon Cycler Layered Medium Armor Plating Light Regenerative Plating > --- WEAPON ----------- Quantum Rifle Nova Cannon Nova Cannon > --- INVENTORY -------- Neutrino Core Advanced Heavy Treads Large Storage Unit Energy Well Compact Matter Pod Improved Signal Interpreter Advanced Weapon Cycler Improved Transmission Jammer Active Sensor Spoofer Advanced System Restoration Module Quantum Rifle Quantum Rifle KE Penetrator KE Penetrator KE Penetrator Heavy Mass Driver Advanced Remote Datajack Improved Plasma Cutter [Rating: 124] Favorites ----------- Power Light Nuclear Core Engine Light Angular Momentum Engine Power Core Light Nuclear Core Reactor Antimatter Reactor Propulsion Advanced Heavy Treads Treads Advanced Heavy Treads Leg Aluminum Leg Wheel Armored Huge Wheel Hover Unit Gravmag Array Flight Unit Electron Diverter Utility High-capacity Storage Unit Device Advanced Heat Sink Storage High-capacity Storage Unit Processor Advanced Targeting Computer Hackware Hacking Suite Protection Improved Medium Armor Plating Weapon Heavy Ion Cannon Energy Gun Wave Gun Energy Cannon Heavy Ion Cannon Ballistic Gun Autogun Ballistic Cannon Advanced Assault Cannon Launcher Advanced EMP Blaster Special Weapon Advanced Remote Datajack Impact Weapon Thunder Hammer Slashing Weapon Scythe Build | -11 -10 -10 -10 -9 -8 -8 -7 -7 -7 -7 -6 -6 -6 -6 -6 -5 -5 -5 -5 -4 -4 -4 -3 -3 -2 ------- Run | Yrd Mat Min Exi Min Mat Gar Fac Low Low Dat Pro Fac Gar Fac Gar Fac Was Fac Gar Fac Was Fac Res Tes Res Slots Evolved 16 | . . . . . 4 . 2 . . . . 2 . . . 2 . . . 2 . . 2 . 2 Power 2 | . . . . . . . . . . . . . . . . 1 . . . 1 . . . . . Propulsion 4 | . . . . . . . . . . . . 2 . . . . . . . . . . . . 2 Utility 9 | . . . . . 4 . 1 . . . . . . . . 1 . . . 1 . . 2 . . Weapon 1 | . . . . . . . 1 . . . . . . . . . . . . . . . . . . Parts Attached 217 | 8 10 3 2 1 13 15 5 6 . . 15 16 23 3 17 20 9 11 16 17 . . 2 4 1 Power 31 | 1 1 1 1 . 1 2 . 1 . . 3 . 1 . 4 4 1 3 2 5 . . . . . Engine 10 | 1 . . 1 . 1 . . . . . 1 . 1 . 2 1 . . 1 1 . . . . . Core 18 | . 1 1 . . . 2 . 1 . . 2 . . . 2 3 . 3 1 2 . . . . . Reactor 3 | . . . . . . . . . . . . . . . . . 1 . . 2 . . . . . Propulsion 38 | 2 4 2 1 . 1 1 . 2 . . 1 6 8 . 1 . 4 . 1 2 . . 1 1 . Treads 19 | 2 . . . . . . . 2 . . 1 6 1 . 1 . 4 . 1 1 . . . . . Leg 11 | . 4 1 1 . . . . . . . . . 5 . . . . . . . . . . . . Wheel 6 | . . 1 . . 1 1 . . . . . . 2 . . . . . . 1 . . . . . Hover 1 | . . . . . . . . . . . . . . . . . . . . . . . 1 . . Flight 1 | . . . . . . . . . . . . . . . . . . . . . . . . 1 . Utility 89 | 2 2 . . 1 6 8 3 2 . . 6 6 10 1 7 9 1 6 8 7 . . . 3 1 Device 44 | 1 1 . . . 3 4 . 1 . . 3 2 5 1 2 6 . 2 5 5 . . . 2 1 Storage 5 | 1 1 . . 1 1 . . . . . . . . . 1 . . . . . . . . . . Processor 5 | . . . . . . . 1 . . . . . . . . 1 . 2 . 1 . . . . . Hackware 12 | . . . . . 1 2 . . . . 1 1 2 . 3 . . . 1 . . . . 1 . Protection 23 | . . . . . 1 2 2 1 . . 2 3 3 . 1 2 1 2 2 1 . . . . . Artifact . | . . . . . . . . . . . . . . . . . . . . . . . . . . Weapon 59 | 3 3 . . . 5 4 2 1 . . 5 4 4 2 5 7 3 2 5 3 . . 1 . . Energy Gun 14 | 2 . . . . . . 1 . . . 1 2 1 . 2 1 . 1 3 . . . . . . Energy Cannon 20 | . 2 . . . 4 2 1 . . . 2 . 1 1 . 4 . 1 . 2 . . . . . Ballistic Gun 8 | 1 . . . . . . . . . . 1 1 . . 3 . 1 . 1 . . . . . . Ballistic Cannon 5 | . . . . . . . . 1 . . . . 1 1 . . 1 . . 1 . . . . . Launcher 4 | . 1 . . . 1 . . . . . 1 . . . . . . . 1 . . . . . . Special Weapon 5 | . . . . . . 1 . . . . . 1 1 . . 1 1 . . . . . . . . Impact Weapon 1 | . . . . . . . . . . . . . . . . 1 . . . . . . . . . Slashing Weapon 2 | . . . . . . 1 . . . . . . . . . . . . . . . . 1 . . Piercing Weapon . | . . . . . . . . . . . . . . . . . . . . . . . . . . Special Melee Weapon . | . . . . . . . . . . . . . . . . . . . . . . . . . . Unidentified Prototypes 11 | . . . . . 1 . 1 . . . . . 1 . . 3 1 1 . . . . 1 2 . Corrupted Parts 6 | . . . . . . . . . . . 6 . . . . . . . . . . . . . . System Corruption 47 | . . . . . . . . . . . 47 . . . . . . . . . . . . . . Parts Lost 69 | . 2 3 . . . 1 . 2 . . 9 1 4 . 8 6 . . 6 18 3 . . 5 1 Power 14 | . 1 1 . . . . . 1 . . 1 . 1 . 2 1 . . 1 4 1 . . . . Propulsion 12 | . . 1 . . . . . 1 . . . . 1 . 1 . . . 2 4 . . . 2 . Utility 23 | . . . . . . . . . . . 2 1 1 . 2 3 . . 1 7 2 . . 3 1 Weapon 20 | . 1 1 . . . 1 . . . . 6 . 1 . 3 2 . . 2 3 . . . . . Highest Loss Streak 7 | . 1 3 . . . 1 . 1 . . 5 1 1 . 3 2 . . 1 7 3 . . 3 1 To Critical Strikes . | . . . . . . . . . . . . . . . . . . . . . . . . . . Average Backups 14 | 5 7 8 6 5 10 12 12 12 13 13 12 12 12 17 16 19 18 16 17 17 11 5 5 4 4 Power 1 | . . 1 . . 1 2 1 . 1 1 1 2 1 1 1 . . . . . 1 1 1 1 1 Propulsion 2 | 2 2 1 1 1 2 2 4 3 3 3 3 2 2 5 3 3 3 3 2 . . . . . . Utility 6 | . 2 4 4 4 2 4 5 6 6 6 5 5 5 5 5 8 8 9 9 8 6 3 3 2 2 Weapon 2 | 1 1 1 . . 3 3 2 1 2 2 1 2 2 3 4 4 3 3 3 5 2 . . . . Tool/Special . | . . . . . . . . . . . . . . . . . . . . . . . . . . Unused Backups 41 | . 4 . 1 . 4 1 4 . . . 2 4 2 1 . 3 1 3 2 . 7 . . . 2 Power 9 | . 1 . . . 1 1 2 . . . 1 2 . . . . . . . . . . . . 1 Propulsion 3 | . . . . . 1 . . . . . . 1 . . . . 1 . . . . . . . . Utility 15 | . 1 . 1 . . . 2 . . . . 1 . 1 . . . 2 2 . 4 . . . 1 Weapon 13 | . 2 . . . 2 . . . . . 1 . 2 . . 3 . 1 . . 2 . . . . Tool/Special 1 | . . . . . . . . . . . . . . . . . . . . . 1 . . . . Average Slot Usage (%) 86 | . 99 95 93 100 87 89 88 98 100 100 94 96 93 78 75 80 81 84 86 83 25 . 1 9 1 Engine 2 | . 10 . 7 14 9 3 . . . . 3 . 4 6 2 2 3 . 2 . . . . . . Core 5 | . 3 11 . . . 5 7 6 7 7 3 6 1 . 3 7 5 5 5 9 2 . . . . Treads 10 | . 17 . . . . . . 12 15 15 15 24 14 . 6 11 11 17 16 12 . . . . . Leg 1 | . 10 25 14 14 2 . . . . . . . 5 . . . . . . . . . . . . Wheel 2 | . . . 14 14 9 9 7 1 . . . . 3 13 5 . . . . . 2 . . . . Device 19 | . 14 14 14 14 32 27 20 15 15 15 15 12 16 20 22 28 23 17 19 21 13 . . 3 1 Storage 6 | . 14 14 14 14 9 9 7 7 7 7 7 6 6 6 7 5 5 5 5 5 2 . . . . Processor 3 | . . . . . . . 5 7 7 7 7 6 5 . . . . 4 5 5 2 . . . . Hackware 4 | . . . . . 7 9 7 7 7 7 13 13 10 . 1 . . . . . . . . . . Protection 7 | . . . . . . 8 9 15 15 15 6 6 4 13 5 4 9 7 10 8 . . . . . Energy Gun 3 | . 16 . . . . . . . . . . 14 13 . 3 . . . 7 5 . . . . . Energy Cannon 6 | . 9 25 14 14 16 15 13 8 7 7 9 1 . 1 . 4 5 4 . 7 . . . . . Ballistic Cannon 1 | . . . . . . . . 5 7 7 . . . 9 1 . . . 2 . 2 . . . . Launcher 1 | . 1 2 14 14 1 . . 5 7 7 7 . . . . . . . . . . . . . . Special Weapon 2 | . . . . . . 2 7 1 . . . . 3 6 4 4 4 5 . . . . . . . Impact Weapon 1 | . . . . . . . . . . . . . . . . 4 4 5 1 . . . . . . Peak Build Rating 124 | 7 12 12 13 13 48 48 55 54 51 51 60 69 103 95 95 112 121 118 116 124 65 2 19 35 6 Average Rating 70 | 5 9 9 10 13 38 46 50 51 51 51 52 66 68 91 82 106 114 114 110 110 23 2 6 19 3 On Entrance 49 | . 7 12 7 13 13 48 44 54 51 51 51 59 65 89 94 89 107 118 115 114 65 2 2 12 2 Naked Turns 301 | . . . . . . . . . . . . . . . . . . . . . 50 50 38 24 139 Heaviest Build 150 | 15 22 22 22 32 73 73 80 83 77 77 82 78 150 109 109 100 111 122 143 138 81 . . 3 3 Greatest Support 140 | 40 40 20 10 10 28 28 28 40 40 40 40 90 90 56 70 140 140 140 140 140 10 3 3 19 3 Greatest Overweight (x) 33 | . 1 1 2 3 4 2 2 2 1 1 2 1 2 1 2 . . . 1 33 8 . . . . Average Overweight (x) . | . . 1 1 2 2 2 2 1 1 1 1 . . 1 . . . . . 1 . . . . . Largest Inventory Capacity 20 | 8 10 10 10 15 20 20 20 20 20 20 20 20 20 20 20 20 20 20 20 20 20 5 5 5 5 Average Capacity 18 | 7 8 10 10 11 18 20 20 20 20 20 20 20 20 20 20 20 20 20 20 20 10 5 5 5 5 Most Carried 20 | 7 8 10 10 10 20 20 20 20 20 20 20 20 20 20 20 20 20 20 20 20 18 5 5 5 5 Average Carried 17 | 5 7 8 9 10 17 19 19 19 20 20 19 19 18 19 17 19 19 19 18 19 9 5 5 4 4 Final Capacity 20 | 8 10 10 10 15 20 20 20 20 20 20 20 20 20 20 20 20 20 20 20 20 5 5 5 5 5 Final Carried 20 | 6 8 8 10 10 20 20 20 20 20 20 18 20 19 20 20 19 20 20 20 18 5 5 5 4 4 Class Distribution -------------------- 33% | Mutant 23% | Tank 15% | Scavenger-Mutant 9% | Scavenger-Skirmisher 5% | Scavenger-Tank 3% | Gunner 3% | Commander-Mutant Dominant Class ---------------- Mutant | -10/Materials Scavenger-Mutant | -10/Mines Scavenger-Mutant | -10/Exiles Scavenger-Mutant | -9/Mines Mutant | -8/Materials Mutant | -8/Garrison Commander-Skirmisher | -7/Factory Tank | -7/Lower Caves Tank | -7/Lower Caves Tank | -7/Data Miner Gunner | -6/Proximity Caves Scavenger-Skirmisher | -6/Factory Scavenger-Skirmisher | -6/Garrison Tank | -6/Factory Scavenger-Tank | -6/Garrison Mutant | -5/Factory Scavenger-Mutant | -5/Waste Mutant | -5/Factory Tank | -5/Garrison Tank | -4/Factory Mutant | -4/Waste Mutant | -4/Factory Mutant | -3/Research Mutant | -3/Testing Mutant | -2/Research Resources | -11 -10 -10 -10 -9 -8 -8 -7 -7 -7 -7 -6 -6 -6 -6 -6 -5 -5 -5 -5 -4 -4 -4 -3 -3 -2 ----------- Run | Yrd Mat Min Exi Min Mat Gar Fac Low Low Dat Pro Fac Gar Fac Gar Fac Was Fac Gar Fac Was Fac Res Tes Res Matter Collected 6191 | 277 128 10 105 20 160 192 78 162 . . 357 481 425 115 789 610 201 234 1426 421 . . . . . Remotely . | . . . . . . . . . . . . . . . . . . . . . . . . . . Salvage Created 10164 | 74 727 100 . . 599 1045 124 419 . . 832 796 669 267 539 1024 . 457 1120 1372 . . . . . Parts 450 | 7 30 7 . . 38 72 9 20 . . 28 37 19 16 28 40 . 12 33 54 . . . . . Haulers Intercepted 4 | . 1 . . . 1 . . . . . . . . . . . . 2 . . . . . . . Recyclers Shooed 5 | . . . . . . . . . . . . 2 . . . 2 . . . 1 . . . . . Parts Field Recycled . | . . . . . . . . . . . . . . . . . . . . . . . . . . Retrieved Matter . | . . . . . . . . . . . . . . . . . . . . . . . . . . Parts Self-Destructed 30 | . . . . . . . . 20 5 . 5 . . . . . . . . . . . . . . Prevented 24 | . . . . . . . . 5 . . 19 . . . . . . . . . . . . . . Kills | -11 -10 -10 -10 -9 -8 -8 -7 -7 -7 -7 -6 -6 -6 -6 -6 -5 -5 -5 -5 -4 -4 -4 -3 -3 -2 ------- Run | Yrd Mat Min Exi Min Mat Gar Fac Low Low Dat Pro Fac Gar Fac Gar Fac Was Fac Gar Fac Was Fac Res Tes Res Combat Hostiles Destroyed 195 | . 15 3 . . 7 23 1 12 . . 17 12 12 5 15 17 . 3 33 20 . . . . . Melee 1 | . . . . . . . . . . . . . . . . 1 . . . . . . . . . Guns 45 | . 8 . . . . . . . . . . 10 10 . 8 . . . 9 . . . . . . Cannons 111 | . 4 3 . . 7 22 1 7 . . 5 2 . 4 7 15 . 2 15 17 . . . . . AOE 24 | . 1 . . . . . . 4 . . 9 . . 1 . . . . 9 . . . . . . Classes Destroyed 19 | 1 4 1 . . 3 3 . 1 . . . 2 1 . . . . 1 1 1 . . . . . Worker 1 | . . . . . . . . . . . . . . . . . . . . 1 . . . . . Builder 3 | . 2 . . . . . . . . . . . . . . . . . . 1 . . . . . Tunneler 5 | 4 . . . . . . . . . . . 1 . . . . . . . . . . . . . Hauler 4 | . 1 . . . 1 . . . . . . . . . . . . 2 . . . . . . . Recycler 3 | . . . . . 1 . 1 . . . . . . 1 . . . . . . . . . . . Mechanic 1 | . . . . . . . . . . . . . . . . . . 1 . . . . . . . Operator 3 | . . . . . 1 . 1 . . . . . . . . . . . . 1 . . . . . Watcher 8 | . 1 . . . 2 1 . . . . . 2 . . . 2 . . . . . . . . . Swarmer 39 | . . . . . . 5 . 7 . . 6 . 1 3 7 . . 1 9 . . . . . . Grunt 79 | . 15 3 . . 3 6 . 3 . . 8 3 8 . 2 3 . . 14 11 . . . . . Brawler 7 | . . . . . . . . . . . . 3 1 . . . . . 2 1 . . . . . Duelist 2 | . . . . . . . . . . . . 1 . . . 1 . . . . . . . . . Sentry 33 | . . . . . 4 9 . 1 . . 2 3 . . 2 3 . 1 7 1 . . . . . Demolisher 1 | . . 1 . . . . . . . . . . . . . . . . . . . . . . . Specialist 4 | . . . . . . 1 . . . . . . 1 2 . . . . . . . . . . . Hunter 8 | . . . . . . . . . . . . . 1 . 1 1 . . 1 4 . . . . . Programmer 21 | . . . . . . 2 1 . . . 1 2 . . 3 9 . . . 3 . . . . . Behemoth 2 | . . . . . . . . 1 . . . . . . . . . . 1 . . . . . . Striker 1 | . . . . . . . . . . . . . . . . . . . 1 . . . . . . Thug 1 | . . . . . . . . . . . . . . . . . . 1 . . . . . . . Best Kill Streak 11 | 3 7 2 . . 6 4 1 3 . . 6 3 4 3 4 2 . 2 11 9 . . . . . Combat Bots Only 11 | . 6 2 . . 2 4 1 3 . . 6 3 4 2 4 2 . 2 11 9 . . . . . Max Kills in Single Turn 4 | 1 1 1 . . 2 1 1 2 . . 2 1 2 2 1 1 . 1 4 1 . . . . . Gunslinging 1 | . . . . . . . . . . . . . 1 . . . . . 1 . . . . . . Exploded 4 | . 1 . . . . . . 2 . . 2 . . 1 . . . . 4 . . . . . . Melee 1 | . . . . . . . . . . . . . . . . 1 . . . . . . . . . Uniques/NPCs Destroyed . | . . . . . . . . . . . . . . . . . . . . . . . . . . Combat | -11 -10 -10 -10 -9 -8 -8 -7 -7 -7 -7 -6 -6 -6 -6 -6 -5 -5 -5 -5 -4 -4 -4 -3 -3 -2 -------- Run | Yrd Mat Min Exi Min Mat Gar Fac Low Low Dat Pro Fac Gar Fac Gar Fac Was Fac Gar Fac Was Fac Res Tes Res Hostile Shots Fired 1654 | . 52 20 . . 29 63 . 120 . . 154 86 72 20 227 89 . 15 156 300 4 25 . 138 84 Missed 579 | . 8 4 . . 9 20 . 51 . . 67 35 23 7 79 21 . 6 51 88 2 9 . 66 33 Hits 1075 | . 44 16 . . 20 43 . 69 . . 87 51 49 13 148 68 . 9 105 212 2 16 . 72 51 Melee 23 | . . . . . . . . . . . . 2 . . . . . . 13 6 2 . . . . Projectile 1052 | . 44 16 . . 20 43 . 69 . . 87 49 49 13 148 68 . 9 92 206 . 16 . 72 51 AOE 14 | . . 11 . . . . . . . . . . . . . 3 . . . . . . . . . Critical Strikes 45 | . . . . . 1 1 . 3 . . 1 2 3 1 2 5 . 1 3 11 2 . . 7 2 Part Disruptions 2 | . . . . . . . . . . . . . 2 . . . . . . . . . . . . Damage Taken 20766 | . 550 604 . . 364 662 . 1150 . . 1701 702 902 418 1547 1787 . 431 2435 3786 123 486 . 1636 1482 Core 5248 | . 91 148 . . 30 75 . 117 . . 222 54 112 . 186 264 . 17 149 573 . 486 . 1272 1452 Absorbed by Shields 694 | . . . . . . . . . . . . . 46 . 256 . . . 348 . . . . 44 . Reduced by Siege Mode 120 | . . . . . . . . . . . . . . . . 15 . . . 105 . . . . . Redirected to Shielding 11 | . . . . . . . . . . . 11 . . . . . . . . . . . . . . Ignored by Resistances 9 | . . . . . . 9 . . . . . . . . . . . . . . . . . . . Regen/Repaired (Parts) 1118 | . . . . . . . . . . . . 41 . . . . 792 121 131 33 . . . . . Core Remaining (%) 44 | 100 . . . 4 . 80 . . . . 51 . . . 58 . . . 57 . . 7 . 2 . Volleys Fired 897 | 8 47 12 . 1 37 90 9 31 . . 37 48 53 14 77 168 . 39 124 102 . . . . . Largest 3 | 2 2 2 . 2 2 2 2 3 . . 3 3 3 2 3 1 . 1 3 3 . . . . . Hottest 282 | 100 120 120 . 90 150 130 130 170 . . 176 243 243 110 110 90 . 90 282 282 . . . . . Shots Fired 1434 | 16 88 24 . 2 74 161 18 63 . . 50 111 110 18 115 168 . 40 188 188 . . . . . Gun 477 | 16 61 . . . . . . . . . . 93 99 . 67 2 . . 124 15 . . . . . Cannon 875 | . 24 18 . 1 73 159 18 56 . . 23 12 2 18 36 165 . 40 57 173 . . . . . Launcher 55 | . 3 6 . 1 1 . . 7 . . 27 4 . . . . . . 6 . . . . . . Special 27 | . . . . . . 2 . . . . . 2 9 . 12 1 . . 1 . . . . . . Kinetic 231 | . . . . . . . . 7 . . 1 28 . 15 70 . . . 89 21 . . . . . Thermal 1065 | 16 85 18 . 1 73 159 18 49 . . 19 77 99 . 20 160 . 13 91 167 . . . . . Explosive 25 | . 3 6 . 1 1 . . . . . 4 4 . . . . . . 6 . . . . . . Electromagnetic 86 | . . . . . . . . 7 . . 26 . 2 3 13 7 . 27 1 . . . . . . Robot Hit Streak 22 | 4 12 2 . . 7 9 5 7 . . 6 22 11 2 8 13 . 7 18 21 . . . . . Robot Miss Streak 5 | 2 3 5 . . 3 4 2 4 . . 5 3 2 3 4 3 . 3 5 4 . . . . . Penetration Max . | . . . . . . . . . . . . . . . . . . . . . . . . . . Secondary Targets 5 | . . . . . . . . . . . . . 2 . 1 . . . 2 . . . . . . Max Gunslinging Chain 1 | . . . . . . . . . . . . . 1 . 1 . . . 1 . . . . . . Capacitor 247 | . . . . . . . . . . . . . 3 3 33 167 . 40 1 . . . . . . Shots Hit Robots 790 | 10 57 7 . . 27 65 10 34 . . 24 66 66 7 61 91 . 25 126 114 . . . . . Core Hits 382 | 4 32 10 . . 14 29 4 18 . . 30 29 20 7 27 32 . 10 69 45 . . . 2 . Critical Kills 6 | . 1 . . . . 1 . . . . . 1 . . . . . . 1 2 . . . . . Critical Parts Destroyed . | . . . . . . . . . . . . . . . . . . . . . . . . . . Critical Strikes 31 | 1 8 . . . . 1 . . . . . 5 4 . 2 . . 1 7 2 . . . . . Burn 17 | 1 7 . . . . . . . . . . 4 4 . . . . . 1 . . . . . . Meltdown 4 | . 1 . . . . 1 . . . . . . . . . . . . . 2 . . . . . Destroy 2 | . . . . . . . . . . . . 1 . . . . . . 1 . . . . . . Blast 7 | . . . . . . . . . . . . . . . 2 . . . 5 . . . . . . Corrupt 1 | . . . . . . . . . . . . . . . . . . 1 . . . . . . . Melee Attacks 6 | . . . . . . 4 . . . . . . . . . 2 . . . . . . . . . Impact 2 | . . . . . . . . . . . . . . . . 2 . . . . . . . . . Slashing 4 | . . . . . . 4 . . . . . . . . . . . . . . . . . . . Piercing . | . . . . . . . . . . . . . . . . . . . . . . . . . . Sneak Attacks . | . . . . . . . . . . . . . . . . . . . . . . . . . . Combat Hostiles . | . . . . . . . . . . . . . . . . . . . . . . . . . . Follow-up Attacks . | . . . . . . . . . . . . . . . . . . . . . . . . . . Damage Inflicted 27745 | 125 971 213 . . 898 1675 275 1323 . . 1800 1676 1518 520 1402 3058 . 742 6779 4746 . . . 24 . Guns 6931 | 125 549 . . . . . . . . . . 1366 1518 . 701 31 . . 2297 344 . . . . . Cannons 16763 | . 212 122 . . 860 1675 275 904 . . 449 268 . 312 644 3018 . 741 2881 4402 . . . . . Explosions 3983 | . 210 91 . . 38 . . 419 . . 1351 36 . 208 57 . . . 1573 . . . . . . Melee . | . . . . . . . . . . . . . . . . . . . . . . . . . . Ramming 68 | . . . . . . . . . . . . 6 . . . 9 . 1 28 . . . . 24 . Kinetic 5668 | . . . . . . . . 152 . . 30 274 . 214 910 . . . 3475 613 . . . . . Thermal 17236 | 125 761 122 . . 860 1675 275 864 . . 458 1360 1518 . 345 2900 . 166 1674 4133 . . . . . Explosive 2299 | . 210 91 . . 38 . . . . . 143 36 . 208 . . . . 1573 . . . . . . Electromagnetic 2474 | . . . . . . . . 307 . . 1169 . . 98 147 149 . 575 29 . . . . . . Impact . | . . . . . . . . . . . . . . . . . . . . . . . . . . Slashing . | . . . . . . . . . . . . . . . . . . . . . . . . . . Piercing . | . . . . . . . . . . . . . . . . . . . . . . . . . . Highest Corruption 51 | . . . . . . . . . . . 51 4 4 4 5 8 8 8 8 . 10 12 . 11 . Average Corruption 6 | . . . . . . . . . . . 10 2 4 4 4 2 8 8 8 . 10 10 . 5 . Corruption Purged 4 | . . . . . . . . . . . . . . . . 3 . . . . . . . 1 . Corruption Blocked . | . . . . . . . . . . . . . . . . . . . . . . . . . . Effects 305 | . . . . . . . . . . . 47 20 33 11 38 29 27 31 60 . 3 4 . 2 . Message Errors 65 | . . . . . . . . . . . 12 2 8 1 8 5 5 6 15 . 2 1 . . . Matter Fused 87 | . . . . . . . . . . . 9 5 8 3 11 9 11 12 18 . . 1 . . . Heat Flow Errors 33 | . . . . . . . . . . . 3 2 4 . 6 5 3 4 5 . . . . 1 . Energy Discharges 38 | . . . . . . . . . . . 4 3 5 2 5 7 3 3 6 . . . . . . Parts Rejected 1 | . . . . . . . . . . . . . . . . . . . 1 . . . . . . Parts Fused 4 | . . . . . . . . . . . . . . 1 . . 1 . 2 . . . . . . Data Loss (minor) 37 | . . . . . . . . . . . 12 3 5 2 3 1 1 4 5 . . . . 1 . Data Loss (major) 11 | . . . . . . . . . . . 1 2 . . 1 2 2 1 2 . . . . . . Misfires 13 | . . . . . . . . . . . 2 3 2 . 3 . . 1 2 . . . . . . Alerts 5 | . . . . . . . . . . . 3 . . . . . 1 . 1 . . . . . . Misdirections 3 | . . . . . . . . . . . . . . . . . . . . . 1 2 . . . Weapon Failures 8 | . . . . . . . . . . . 1 . 1 2 1 . . . 3 . . . . . . Overload Shots . | . . . . . . . . . . . . . . . . . . . . . . . . . . Overflow Damage 344 | . . . . . 49 8 21 1 . . 19 . . . 65 80 . . 29 72 . . . . . Projectiles 335 | . . . . . 49 8 21 1 . . 11 . . . 65 80 . . 28 72 . . . . . Explosions 9 | . . . . . . . . . . . 8 . . . . . . . 1 . . . . . . Melee . | . . . . . . . . . . . . . . . . . . . . . . . . . . Knockbacks 23 | . . . . . . . . . . . . . . 3 7 . . . 7 6 . . . . . Impact . | . . . . . . . . . . . . . . . . . . . . . . . . . . Kinetic 22 | . . . . . . . . . . . . . . 2 7 . . . 7 6 . . . . . Secondary 1 | . . . . . . . . . . . . . . 1 . . . . . . . . . . . Self-Inflicted Damage 746 | . . 70 . . 30 . . . . . 297 39 . 238 . . . . 61 . . . . 11 . Shots 25 | . . 4 . . 1 . . . . . 15 1 . 3 . . . . 1 . . . . . . Rammed 9 | . . . . . . . . . . . . 1 . . . 2 . . 3 . . . . 3 . Targets Rammed 11 | . . . . . . . . . . . . 1 . . . 3 . 1 3 . . . . 3 . Kicked . | . . . . . . . . . . . . . . . . . . . . . . . . . . Crushed 2 | . . . . . . . . . . . . . . . . 1 . 1 . . . . . . . Highest Temperature 337 | 156 272 300 . 30 46 99 . 69 . . 153 326 337 78 324 270 4 147 125 317 . . . 130 . Average Temperature 61 | 65 68 110 . 17 11 21 . 22 . . 58 80 109 39 112 84 4 69 42 67 . . . 86 . Received Heat Transfer 3583 | . 312 45 . . 162 171 . 207 . . 354 201 288 36 147 180 . 54 418 716 . 9 . 220 63 Siege Activations 4 | . . . . . . . . . . . . . . . . 2 . . . 2 . . . . . Total Turns 59 | . . . . . . . . . . . . . . . . 12 . . . 47 . . . . . Longest Duration 35 | . . . . . . . . . . . . . . . . 7 . . . 35 . . . . . Martial Activations . | . . . . . . . . . . . . . . . . . . . . . . . . . . Shielding Activations . | . . . . . . . . . . . . . . . . . . . . . . . . . . Robots Disrupted 2 | . . . . . . . . . . . 1 . . . 1 . . . . . . . . . . Combat Hostiles 2 | . . . . . . . . . . . 1 . . . 1 . . . . . . . . . . Robots Corrupted 8 | . . . . . . . . 1 . . 3 . . . . 1 . 3 . . . . . . . Combat Hostiles 6 | . . . . . . . . 1 . . 3 . . . . 1 . 1 . . . . . . . Parts Fried 16 | . . . . . . . . . . . 9 . . 1 . 2 . 4 . . . . . . . Impact Corruptions . | . . . . . . . . . . . . . . . . . . . . . . . . . . Robots Melted 8 | . 2 . . . . 1 . . . . . . 2 . . . . . . 3 . . . . . Combat Hostiles 8 | . 2 . . . . 1 . . . . . . 2 . . . . . . 3 . . . . . Parts Melted 50 | 1 6 . . . . 5 2 . . . 1 5 2 . 2 13 . . 1 12 . . . . . Heat Transferred 22975 | 444 2590 259 . . 1184 2103 370 1149 . . 668 2294 2492 . 454 3378 . 222 2087 3281 . . . . . Parts Sabotaged . | . . . . . . . . . . . . . . . . . . . . . . . . . . Parts Stolen . | . . . . . . . . . . . . . . . . . . . . . . . . . . Parts Stripped . | . . . . . . . . . . . . . . . . . . . . . . . . . . Power Chain Reactions 5 | . . . . . . . . 1 . . 3 . . . 1 . . . . . . . . . . Alert | -11 -10 -10 -10 -9 -8 -8 -7 -7 -7 -7 -6 -6 -6 -6 -6 -5 -5 -5 -5 -4 -4 -4 -3 -3 -2 ------- Run | Yrd Mat Min Exi Min Mat Gar Fac Low Low Dat Pro Fac Gar Fac Gar Fac Was Fac Gar Fac Was Fac Res Tes Res Maximum Alert Level 5 | . . . . . . 4 2 . . . . . 3 3 3 2 . 1 4 3 1 . . 5 4 Low Security (%) 35 | 100 100 100 . 100 100 5 . . . . . 100 26 . . . 100 90 6 . . 100 100 . . Level 1 21 | . . . . . . 11 . . . . . . 4 . . 93 . 9 29 . 100 . . . . Level 2 21 | . . . . . . 37 100 . . . . . 43 79 46 6 . . 3 69 . . . . . Level 3 15 | . . . . . . 29 . . . . . . 25 20 53 . . . 29 30 . . . . 90 Level 4 4 | . . . . . . 16 . . . . . . . . . . . . 31 . . . . . 9 Level 5 . | . . . . . . . . . . . . . . . . . . . . . . . . . . High Security . | . . . . . . . . . . . . . . . . . . . . . . . . . . Max Security 1 | . . . . . . . . . . . . . . . . . . . . . . . . 99 . Peak Influence 1835 | 15 160 49 . 9 100 1253 657 . . . . 112 1084 736 914 484 135 225 1421 854 292 158 72 1835 1100 Initial 1100 | . . 49 . . . 57 657 . . . . 45 78 558 453 479 135 . 97 745 292 158 72 23 1100 Average 429 | 1 67 9 . . 18 714 559 . . . . 32 552 642 718 335 26 99 766 674 252 149 59 1666 1055 Influence Increases 10008 | 20 421 89 . 9 269 1326 260 424 . . 415 417 1186 304 601 690 . 792 1564 801 15 . . 300 105 Destroy 0b10 Robot/C 5200 | . 300 60 . . 140 580 100 320 . . 340 300 680 100 340 340 . 320 860 420 . . . . . Destroy 0b10 Robot/NC 185 | 20 20 . . . 25 5 20 . . . . 15 5 5 . 10 . 30 . 30 . . . . . Destroy Leader 722 | . 74 20 . . 56 20 54 40 . . 30 64 20 20 30 94 . 76 40 84 . . . . . Allied During Kill 861 | . . . . . . 121 64 19 . . . 9 182 . 5 . . 317 129 15 . . . . . Successful Hack 150 | . 9 . . . 8 30 17 . . . . 8 . 5 . 24 . 28 . 21 . . . . . Disable Machine 255 | . . . . . . 15 . . . . . . 15 105 . 45 . 15 . 60 . . . . . Anti-Garrison Action 1150 | . . . . . . 450 . . . . . . 200 . 200 . . . 300 . . . . . . Destroy Structure 630 | . 18 9 . 9 40 75 5 . . . . 21 54 54 26 102 . 6 115 96 . . . . . Partial Spotted 30 | . . . . . . . . . . . . . . . . 15 . . . . 15 . . . . Lose Combat Pursuer 825 | . . . . . . 30 . 45 . . 45 . 30 15 . 60 . . 120 75 . . . 300 105 Influence Decreases 10550 | 20 294 216 . 9 181 161 946 915 76 . 342 378 234 720 335 1216 388 653 282 1386 624 89 96 69 920 Entered New Map 4608 | . . 78 . . . 31 596 211 15 . . 28 34 506 195 435 253 . 42 676 544 69 66 19 810 Time Decay 4250 | 20 274 136 . 9 181 . 270 624 61 . 282 350 . 214 . 711 135 333 . 470 30 20 30 . 100 Lost Part 622 | . 20 2 . . . 10 . 20 . . 60 . 40 . 80 60 . . 60 180 30 . . 50 10 Lost Ally 1070 | . . . . . . 120 80 60 . . . . 160 . 60 10 . 320 180 60 20 . . . . Squads Dispatched 43 | . 3 . . . 2 . 2 . . . . 5 . 3 . 7 . 4 . 4 . . . 12 1 Investigation 7 | . 2 . . . . . . . . . . 2 . 1 . 2 . . . . . . . . . Extermination 14 | . . . . . . . 2 . . . . 2 . 1 . 5 . 2 . 1 . . . . 1 Reinforcement 8 | . 1 . . . 2 . . . . . . . . 1 . . . 2 . 2 . . . . . Assault 13 | . . . . . . . . . . . . . . . . . . . . 1 . . . 12 . Garrison 1 | . . . . . . . . . . . . 1 . . . . . . . . . . . . . Intercept . | . . . . . . . . . . . . . . . . . . . . . . . . . . Searches Triggered . | . . . . . . . . . . . . . . . . . . . . . . . . . . Construction Impeded 3 | . . . . . 1 . . . . . . . . . . . . . . 2 . . . . . Haulers Reinforced 1 | . . . . . . . . . . . . . . . . . . 1 . . . . . . . Active Scanning Responses . | . . . . . . . . . . . . . . . . . . . . . . . . . . Cargo Convoy Interrupts . | . . . . . . . . . . . . . . . . . . . . . . . . . . Stealth | -11 -10 -10 -10 -9 -8 -8 -7 -7 -7 -7 -6 -6 -6 -6 -6 -5 -5 -5 -5 -4 -4 -4 -3 -3 -2 --------- Run | Yrd Mat Min Exi Min Mat Gar Fac Low Low Dat Pro Fac Gar Fac Gar Fac Was Fac Gar Fac Was Fac Res Tes Res Distress Signals 15 | . 1 . . . 2 1 2 . . . . 1 2 . . 1 . 1 . . . . . 4 . Communications Jammed . | . . . . . . . . . . . . . . . . . . . . . . . . . . Distress Signals . | . . . . . . . . . . . . . . . . . . . . . . . . . . Times Spotted 399 | . 18 9 . . 14 34 5 17 . . 21 19 40 6 24 26 1 18 44 29 5 5 . 45 19 Peak Tracking Total 23 | . 3 6 . . 4 5 2 5 . . 7 3 7 3 4 4 1 6 8 9 5 7 . 23 13 Tactical Retreats 26 | . . 1 . . . 2 . 2 . . 3 . 1 1 . 1 . . 4 3 . . . 6 2 Traps | -11 -10 -10 -10 -9 -8 -8 -7 -7 -7 -7 -6 -6 -6 -6 -6 -5 -5 -5 -5 -4 -4 -4 -3 -3 -2 ------- Run | Yrd Mat Min Exi Min Mat Gar Fac Low Low Dat Pro Fac Gar Fac Gar Fac Was Fac Gar Fac Was Fac Res Tes Res Traps Triggered 26 | . . . . . . 4 . . . . . 3 6 1 4 4 . 2 . 1 . . . 1 . Indirectly . | . . . . . . . . . . . . . . . . . . . . . . . . . . Trap Hack Attempts . | . . . . . . . . . . . . . . . . . . . . . . . . . . Triggered . | . . . . . . . . . . . . . . . . . . . . . . . . . . Disarmed . | . . . . . . . . . . . . . . . . . . . . . . . . . . Reprogrammed . | . . . . . . . . . . . . . . . . . . . . . . . . . . Reused . | . . . . . . . . . . . . . . . . . . . . . . . . . . Traps Extracted . | . . . . . . . . . . . . . . . . . . . . . . . . . . Installed . | . . . . . . . . . . . . . . . . . . . . . . . . . . Triggered . | . . . . . . . . . . . . . . . . . . . . . . . . . . Machines | -11 -10 -10 -10 -9 -8 -8 -7 -7 -7 -7 -6 -6 -6 -6 -6 -5 -5 -5 -5 -4 -4 -4 -3 -3 -2 ---------- Run | Yrd Mat Min Exi Min Mat Gar Fac Low Low Dat Pro Fac Gar Fac Gar Fac Was Fac Gar Fac Was Fac Res Tes Res Machines Disabled 31 | . . . . . . 7 . . . . 1 . 2 7 2 3 . 1 4 4 . . . . . Max in Single Turn 4 | . . . . . . 1 . . . . 1 . 1 4 1 1 . . 1 1 . . . . . Garrison Access 2 | . . . . . . . . . . . . . . . . 1 . . . . . 1 . . . Garrison Relay 10 | . . . . . . 5 . . . . . . 1 . 2 . . . 2 . . . . . . Machines Repaired . | . . . . . . . . . . . . . . . . . . . . . . . . . . Machines Dismantled . | . . . . . . . . . . . . . . . . . . . . . . . . . . Machines Sabotaged . | . . . . . . . . . . . . . . . . . . . . . . . . . . Overloaded Fab Kills . | . . . . . . . . . . . . . . . . . . . . . . . . . . Hacking | -11 -10 -10 -10 -9 -8 -8 -7 -7 -7 -7 -6 -6 -6 -6 -6 -5 -5 -5 -5 -4 -4 -4 -3 -3 -2 --------- Run | Yrd Mat Min Exi Min Mat Gar Fac Low Low Dat Pro Fac Gar Fac Gar Fac Was Fac Gar Fac Was Fac Res Tes Res Machines Accessed 53 | . 4 . 2 . 7 4 3 . 1 4 1 7 2 2 1 6 . 4 1 3 . 1 . . . Terminals 37 | . 4 . . . 6 4 3 . 1 . 1 4 2 1 1 4 . 2 1 3 . . . . . Fabricators 2 | . . . . . . . . . . . . 1 . . . 1 . . . . . . . . . Repair Stations 2 | . . . . . . . . . . . . 1 . . . . . 1 . . . . . . . Recycling Units . | . . . . . . . . . . . . . . . . . . . . . . . . . . Scanalyzers . | . . . . . . . . . . . . . . . . . . . . . . . . . . Garrison Access 6 | . . . . . 1 . . . . . . 1 . 1 . 1 . 1 . . . 1 . . . Total Hacks 131 | . 10 . 2 . 16 8 15 . 1 27 5 16 4 2 2 11 . 6 1 3 . 2 . . . Successful 86 | . 5 . 2 . 13 3 5 . 1 27 5 6 1 2 . 8 . 4 . 2 . 2 . . . Failed 45 | . 5 . . . 3 5 10 . . . . 10 3 . 2 3 . 2 1 1 . . . . . Catastrophic 5 | . . . . . . . 1 . . . . 1 1 . . 1 . 1 . . . . . . . Database Lockouts . | . . . . . . . . . . . . . . . . . . . . . . . . . . Manual 50 | . 10 . 1 . 13 . 11 . . . . 6 . 1 . 2 . 3 . 3 . . . . . Terminals 82 | . 10 . . . 14 8 15 . 1 . 5 8 4 1 2 7 . 3 1 3 . . . . . Fabricators 7 | . . . . . . . . . . . . 4 . . . 3 . . . . . . . . . Repair Stations 5 | . . . . . . . . . . . . 3 . . . . . 2 . . . . . . . Recycling Units . | . . . . . . . . . . . . . . . . . . . . . . . . . . Scanalyzers . | . . . . . . . . . . . . . . . . . . . . . . . . . . Garrison Access 8 | . . . . . 2 . . . . . . 1 . 1 . 1 . 1 . . . 2 . . . Terminal Hacks 45 | . . . 2 . 1 3 2 . 1 27 5 . 1 . . 3 . . . . . . . . . Record 18 | . . . 1 . . . . . 1 11 5 . . . . . . . . . . . . . . Part Schematic 10 | . . . . . . . . . . 9 . . . . . 1 . . . . . . . . . Robot Schematic 4 | . . . . . . . . . . 4 . . . . . . . . . . . . . . . Prototype ID Bank 3 | . . . . . . . . . . 3 . . . . . . . . . . . . . . . Open Door 1 | . . . . . . 1 . . . . . . . . . . . . . . . . . . . Branch Access Points 1 | . . . . . . . 1 . . . . . . . . . . . . . . . . . . Emergency Access Points 2 | . . . . . . 1 . . . . . . 1 . . . . . . . . . . . . Locate Traps 1 | . . . . . . . . . . . . . . . . 1 . . . . . . . . . Hauler Manifests 2 | . . . . . . . 1 . . . . . . . . 1 . . . . . . . . . Zone Layout 1 | . . . . . 1 . . . . . . . . . . . . . . . . . . . . Garrison Registry 1 | . . . . . . 1 . . . . . . . . . . . . . . . . . . . Proto ID Catalog 1 | . . . 1 . . . . . . . . . . . . . . . . . . . . . . Fabricator Hacks 4 | . . . . . . . . . . . . 2 . . . 2 . . . . . . . . . Load Schematic 2 | . . . . . . . . . . . . 1 . . . 1 . . . . . . . . . Build 2 | . . . . . . . . . . . . 1 . . . 1 . . . . . . . . . Repair Station Hacks 4 | . . . . . . . . . . . . 2 . . . . . 2 . . . . . . . Scan Component 2 | . . . . . . . . . . . . 1 . . . . . 1 . . . . . . . Repair 2 | . . . . . . . . . . . . 1 . . . . . 1 . . . . . . . Recycling Unit Hacks . | . . . . . . . . . . . . . . . . . . . . . . . . . . Scanalyzer . | . . . . . . . . . . . . . . . . . . . . . . . . . . Garrison Access Hacks 7 | . . . . . 1 . . . . . . 1 . 1 . 1 . 1 . . . 2 . . . Unlock Access 4 | . . . . . 1 . . . . . . 1 . 1 . . . 1 . . . . . . . Seal Access 2 | . . . . . . . . . . . . . . . . 1 . . . . . 1 . . . Coupler Status 1 | . . . . . . . . . . . . . . . . . . . . . . 1 . . . Unauthorized Hacks 26 | . 5 . . . 11 . 3 . . . . 1 . 1 . 2 . 1 . 2 . . . . . Terminals 26 | . 5 . . . 11 . 3 . . . . 1 . 1 . 2 . 1 . 2 . . . . . Assimilate 5 | . 1 . . . 1 . . . . . . . . . . 1 . 1 . 1 . . . . . Botnet 13 | . 2 . . . 5 . 2 . . . . 1 . 1 . 1 . . . 1 . . . . . Skim 8 | . 2 . . . 5 . 1 . . . . . . . . . . . . . . . . . . Fabricators . | . . . . . . . . . . . . . . . . . . . . . . . . . . Repair Stations . | . . . . . . . . . . . . . . . . . . . . . . . . . . Recycling Units . | . . . . . . . . . . . . . . . . . . . . . . . . . . Scanalyzers . | . . . . . . . . . . . . . . . . . . . . . . . . . . Garrison Access . | . . . . . . . . . . . . . . . . . . . . . . . . . . Data Cores Recovered 4 | . . . . . 1 . 1 . . . . . . . . . . 1 . 1 . . . . . Used . | . . . . . . . . . . . . . . . . . . . . . . . . . . Hacking Detections 31 | . 3 . . . 5 4 1 . . . 1 5 2 . 1 5 . 1 1 2 . . . . . Full Trace Events 9 | . 2 . . . . 2 . . . . . 2 1 . . 2 . . . . . . . . . Feedback Events 1 | . . . . . . . . . . . . 1 . . . . . . . . . . . . . Corruption 1 | . . . . . . . . . . . . 1 . . . . . . . . . . . . . Feedback Blocked . | . . . . . . . . . . . . . . . . . . . . . . . . . . Robot Schematics Acquired 4 | . . . . . . . . . . 4 . . . . . . . . . . . . . . . Robots Built . | . . . . . . . . . . . . . . . . . . . . . . . . . . Authchips . | . . . . . . . . . . . . . . . . . . . . . . . . . . Time . | . . . . . . . . . . . . . . . . . . . . . . . . . . Total Robot Build Rating . | . . . . . . . . . . . . . . . . . . . . . . . . . . Part Schematics Acquired 10 | . . . . . . . . . . 9 . . . . . 1 . . . . . . . . . Parts Built 3 | . . . . . . . . . . . . 2 . . . 1 . . . . . . . . . Authchips . | . . . . . . . . . . . . . . . . . . . . . . . . . . Time 205 | . . . . . . . . . . . . 53 . . . 152 . . . . . . . . . Total Part Build Rating 17 | . . . . . . . . . . . . 12 . . . 5 . . . . . . . . . Parts Repaired 2 | . . . . . . . . . . . . 1 . . . . . 1 . . . . . . . Time 47 | . . . . . . . . . . . . 28 . . . . . 19 . . . . . . . Parts Recycled . | . . . . . . . . . . . . . . . . . . . . . . . . . . Recycled Matter . | . . . . . . . . . . . . . . . . . . . . . . . . . . Retrieved Matter . | . . . . . . . . . . . . . . . . . . . . . . . . . . Retrieved Components . | . . . . . . . . . . . . . . . . . . . . . . . . . . Parts Scanalyzed . | . . . . . . . . . . . . . . . . . . . . . . . . . . Part Schematics Acquired . | . . . . . . . . . . . . . . . . . . . . . . . . . . Parts Damaged . | . . . . . . . . . . . . . . . . . . . . . . . . . . Bothacking | -11 -10 -10 -10 -9 -8 -8 -7 -7 -7 -7 -6 -6 -6 -6 -6 -5 -5 -5 -5 -4 -4 -4 -3 -3 -2 ------------ Run | Yrd Mat Min Exi Min Mat Gar Fac Low Low Dat Pro Fac Gar Fac Gar Fac Was Fac Gar Fac Was Fac Res Tes Res Used RIF Installer 5 | . . . . . . 2 . . . . . . 1 . 1 . . . 1 . . . . . . Command Fork 1 | . . . . . . . . . . . . . . . . . . . 1 . . . . . . Zone Cloak 1 | . . . . . . . . . . . . . . . 1 . . . . . . . . . . Structural Interface 1 | . . . . . . 1 . . . . . . . . . . . . . . . . . . . Program Shield 1 | . . . . . . . . . . . . . 1 . . . . . . . . . . . . Robots Hacked 14 | . . . . . . 2 . . . . . 2 5 . 5 . . . . . . . . . . Non-combat . | . . . . . . . . . . . . . . . . . . . . . . . . . . Combat 14 | . . . . . . 2 . . . . . 2 5 . 5 . . . . . . . . . . Robot Hacks Applied 14 | . . . . . . 2 . . . . . 2 5 . 5 . . . . . . . . . . find_shortcuts 1 | . . . . . . . . . . . . . . . 1 . . . . . . . . . . amplify_resonance 2 | . . . . . . . . . . . . . 1 . 1 . . . . . . . . . . overwrite_iff 4 | . . . . . . . . . . . . 1 2 . 1 . . . . . . . . . . streamctrl_high 2 | . . . . . . . . . . . . . 1 . 1 . . . . . . . . . . formatsys_high 5 | . . . . . . 2 . . . . . 1 1 . 1 . . . . . . . . . . Relay Couplers Released 37 | . . . . . . 17 . . . . . . 5 . 6 . . 3 6 . . . . . . Machine Destruction 34 | . . . . . . 17 . . . . . . 5 . 6 . . . 6 . . . . . . Programmers 3 | . . . . . . . . . . . . . . . . . . 3 . . . . . . . Attached 9 | . . . . . . 2 . . . . 1 . 2 . 3 . . . 1 . . . . . . Fabnet Peak Effective % . | . . . . . . . . . . . . . . . . . . . . . . . . . . Robots Rewired 29 | . . . . . . 13 . . . . . . 3 . . . . . 13 . . . . . . Allies Hacked 5 | . . . . . . . . . . . . . . . . . . 4 . 1 . . . . . Hacks Repelled . | . . . . . . . . . . . . . . . . . . . . . . . . . . Allies | -11 -10 -10 -10 -9 -8 -8 -7 -7 -7 -7 -6 -6 -6 -6 -6 -5 -5 -5 -5 -4 -4 -4 -3 -3 -2 -------- Run | Yrd Mat Min Exi Min Mat Gar Fac Low Low Dat Pro Fac Gar Fac Gar Fac Was Fac Gar Fac Was Fac Res Tes Res Total Allies 68 | . . 3 . . . 16 . . . . . 2 9 . 3 1 20 . 13 . 1 . . . . Largest Group 20 | . . 3 . . . 12 9 4 . . . 1 5 . 1 1 20 20 6 3 1 . . . . Highest-Rated Group 779 | . . 40 . . . 220 180 75 . . . 32 278 . 32 10 779 775 139 129 46 . . . . Highest-Rated Ally 95 | . . 16 . . . 31 31 24 . . . 32 95 . 32 10 46 47 51 43 46 . . . . Total Orders 5 | . . . . . . . . . . . . . 5 . . . . . . . . . . . . RETURN 5 | . . . . . . . . . . . . . 5 . . . . . . . . . . . . Ally Attacks 465 | . . 9 . . . 32 32 20 . . . 8 108 . 9 . 13 142 63 22 7 . . . . Total Damage 10605 | . . 95 . . . 636 624 351 . . . 330 3085 . 156 . 463 2692 1328 614 231 . . . . Kills 81 | . . 2 . . . 6 7 5 . . . 3 25 . 2 . 1 16 10 4 . . . . . Allies Corrupted 2 | . . . . . . . . . . . . . . . . . . 2 . . . . . . . Allies Melted . | . . . . . . . . . . . . . . . . . . . . . . . . . . Intel | -11 -10 -10 -10 -9 -8 -8 -7 -7 -7 -7 -6 -6 -6 -6 -6 -5 -5 -5 -5 -4 -4 -4 -3 -3 -2 ------- Run | Yrd Mat Min Exi Min Mat Gar Fac Low Low Dat Pro Fac Gar Fac Gar Fac Was Fac Gar Fac Was Fac Res Tes Res Active Infowar (turns) 5193 | 5 211 619 247 245 187 . . . . . . . 2 245 690 2739 . 2 . . . . . . 1 Seismic 1514 | 5 211 619 247 245 187 . . . . . . . . . . . . . . . . . . . . Cloaking 2 | . . . . . . . . . . . . . . . . . . 2 . . . . . . . Spoofing 937 | . . . . . . . . . . . . . 2 245 690 . . . . . . . . . . Jamming 2739 | . . . . . . . . . . . . . . . . 2739 . . . . . . . . . ECM 1 | . . . . . . . . . . . . . . . . . . . . . . . . . 1 Robot Analysis Total . | . . . . . . . . . . . . . . . . . . . . . . . . . . Derelict Logs Recovered 6 | . . 1 . . . . . 2 1 . 2 . . . . . . . . . . . . . . Drone Launches 7 | . . . . . . . . . . . . . 7 . . . . . . . . . . . . Drone Recoveries 5 | . . . . . . . . . . . . . 5 . . . . . . . . . . . . Exploration | -11 -10 -10 -10 -9 -8 -8 -7 -7 -7 -7 -6 -6 -6 -6 -6 -5 -5 -5 -5 -4 -4 -4 -3 -3 -2 ------------- Run | Yrd Mat Min Exi Min Mat Gar Fac Low Low Dat Pro Fac Gar Fac Gar Fac Was Fac Gar Fac Was Fac Res Tes Res Turns Passed 23836 | 159 773 688 247 245 900 1724 590 2121 858 240 1547 1419 1612 448 1372 3200 746 1155 1891 1182 78 50 67 315 209 Spaces Moved 12303 | 78 392 345 236 198 487 872 401 823 344 97 512 603 777 298 764 1478 434 706 866 415 114 99 92 557 315 Core 980 | 12 . . . . . . . . . . . . . . . . . . . 3 100 99 92 359 315 Treads 7128 | 66 204 . . . . . . 593 344 97 512 603 424 . 413 1478 434 706 866 388 . . . . . Legs 622 | . 188 316 . . . . . . . . . . 118 . . . . . . . . . . . . Wheels 3375 | . . 29 236 198 487 872 401 230 . . . . 235 298 351 . . . . 24 14 . . . . Hover . | . . . . . . . . . . . . . . . . . . . . . . . . . . Flight 198 | . . . . . . . . . . . . . . . . . . . . . . . . 198 . Fastest Speed 35 | 50 120 95 95 110 110 130 130 130 250 250 250 162 97 115 115 145 145 145 145 145 50 50 50 35 50 Average Speed 153 | 143 145 182 102 113 128 130 130 243 250 250 279 185 164 115 131 145 145 145 146 206 68 50 50 44 50 Slowest Speed 1700 | 160 190 190 110 125 140 130 130 330 250 250 330 246 243 115 145 145 145 145 225 1700 200 50 50 50 50 Overloaded Moves . | . . . . . . . . . . . . . . . . . . . . . . . . . . Propulsion Burnouts . | . . . . . . . . . . . . . . . . . . . . . . . . . . Robots Hopped 11 | . . . . . . . . . . . . . . . . . . . . . . . . 11 . Potential Cave-ins 5 | . . 3 . . . . . . . . . . . . . 2 . . . . . . . . . Cave-ins Triggered . | . . . . . . . . . . . . . . . . . . . . . . . . . . Exploration Rate (%) 48 | 5 69 59 60 33 37 68 13 93 48 75 72 22 92 13 65 43 96 27 95 12 75 6 4 73 18 Regions Visited 25 Branch Regions 8 Pre-discovered Areas 3 | . . . 1 . . . . 1 . 1 . . . . . . . . . . . . . . . Known Exits Taken 6 | . . . . . 1 . 1 . . . . 1 . 1 . . . 1 . . . 1 . . . Unknown Exits Taken 11 | 1 1 1 1 1 . . . 1 1 1 1 . . . . . . . . . . . 1 1 . Scrap Searched 6 | . . . . 1 . . . 3 . . 2 . . . . . . . . . . . . . . Spaces Dug 119 | . . 14 . . 17 . 1 . . . . 14 . 4 . 36 . 1 . 32 . . . . . Terrain Destroyed 462 | . 15 42 . 9 42 . 3 12 . . 52 29 . 53 13 57 . 2 70 63 . . . . . Melee 2 | . . . . . . . . . . . . . . . . 2 . . . . . . . . . Projectile 217 | . . . . . 37 . 3 12 . . 1 9 . 8 5 55 . 2 22 63 . . . . . AOE 243 | . 15 42 . 9 5 . . . . . 51 20 . 45 8 . . . 48 . . . . . . Terrain Rammed . | . . . . . . . . . . . . . . . . . . . . . . . . . . Walls Destroyed . | . . . . . . . . . . . . . . . . . . . . . . . . . . Machines Disabled . | . . . . . . . . . . . . . . . . . . . . . . . . . . Actions | -11 -10 -10 -10 -9 -8 -8 -7 -7 -7 -7 -6 -6 -6 -6 -6 -5 -5 -5 -5 -4 -4 -4 -3 -3 -2 --------- Run | Yrd Mat Min Exi Min Mat Gar Fac Low Low Dat Pro Fac Gar Fac Gar Fac Was Fac Gar Fac Was Fac Res Tes Res Total 16352 | 108 511 381 241 217 692 1298 455 879 343 96 587 834 1053 387 1082 2539 556 840 1336 619 113 98 111 610 366 Wait 2094 | 5 42 16 . 17 115 137 21 11 . . . 120 92 62 168 813 86 48 158 68 . . 17 49 49 Move 12266 | 77 391 344 235 197 486 871 400 822 343 96 511 603 776 298 763 1478 433 706 864 415 113 98 91 540 315 Hop 5 | . . . . . . . . . . . . . . . . . . . . . . . . 5 . Pick Up 220 | 10 11 2 1 . 23 11 7 4 . . 13 15 33 4 20 18 10 6 20 11 . . . . 1 Fast Attach 61 | 3 . . . . . . 4 2 . . . 6 3 . 2 12 4 11 6 3 . . 2 3 . Attach 129 | 4 4 2 2 . 12 5 1 3 . . 10 6 23 3 15 9 8 . 9 11 . . . 1 1 Detach 9 | . . . . . 2 . . . . . . . 3 . 2 2 . . . . . . . . . Swap 102 | 1 6 3 . 1 3 14 2 4 . . 8 14 7 2 9 7 . 8 7 6 . . . . . Drop 211 | . 10 2 3 1 14 12 11 2 . . 8 20 32 4 10 27 14 21 16 3 . . 1 . . Fire 897 | 8 47 12 . 1 37 90 9 31 . . 37 48 53 14 77 168 . 39 124 102 . . . . . Melee 6 | . . . . . . 4 . . . . . . . . . 2 . . . . . . . . . Ram 3 | . . . . . . . . . . . . . . . . . . . . . . . . 3 . Kick . | . . . . . . . . . . . . . . . . . . . . . . . . . . Crush 8 | . . . . . . . . . . . . 1 . . . 3 . 1 3 . . . . . . Escape Stasis 55 | . . . . . . 24 . . . . . . 6 . 16 . . . . . . . . 9 . Rewire 286 | . . . . . . 130 . . . . . 1 25 . . . 1 . 129 . . . . . . Trap . | . . . . . . . . . . . . . . . . . . . . . . . . . . Miscellaneous . | . . . . . . . . . . . . . . . . . . . . . . . . . . Route ------- -11/Scrapyard -10/Materials (discovered 3 exits: [*Mat x2] / [*Min]) -10/Mines (discovered 2 exits: [*Mat] / *Exi) -10/Exiles -9/Mines -8/Materials -8/Garrison (discovered 3 exits: *Fac x3) -7/Factory (discovered 4 exits: Sto x2 / *Low x2) -7/Lower Caves -7/Lower Caves -7/Data Miner -6/Proximity Caves -6/Factory (discovered 3 exits: *Fac x2 / Gar) -6/Garrison (discovered 3 exits: *Fac x3) -6/Factory -6/Garrison (discovered 2 exits: *Fac / [*Fac]) -5/Factory (discovered 2 exits: *Fac / *Upp) -5/Waste -5/Factory (discovered 2 exits: *Upp / Gar) -5/Garrison (discovered 3 exits: *Fac x3) -4/Factory -4/Waste -4/Factory -3/Research -3/Testing -2/Research History --------- Turn | Location | Event 12 | -11/Scrapyard | Discovered new exit (range 15) 160 | -11/Scrapyard | Entered Materials 301 | -10/Materials | Build established: Mutant 316 | -10/Materials | Discovered new exit (range 7) 407 | -10/Materials | Discovered new exit (range 9) 667 | -10/Materials | Discovered new exit (range 5) 933 | -10/Materials | Entered Mines 1039 | -10/Mines | Deemed a non-threat by the Exiles lab entrance 1039 | -10/Mines | Discovered new exit (range 5) 1137 | -10/Mines | Build established: Scavenger-Mutant 1216 | -10/Mines | Learned Materials trap positions 1466 | -10/Mines | Assembled infested the area 1485 | -10/Mines | Core integrity fell below 50% 1489 | -10/Mines | Core integrity fell below 20% 1514 | -10/Mines | Discovered new exit (range 10) 1521 | -10/Mines | Lost 3 parts (1p1n1w) 1534 | -10/Mines | Assisted by bots powering up and referring to "LRC-V3" 1621 | -10/Mines | Entered Exiles 1644 | -10/Exiles | Met 8R-AWN 1660 | -10/Exiles | Met EX-HEX 1690 | -10/Exiles | Met EX-BIN 1701 | -10/Exiles | Aligned with FarCom system 1702 | -10/Exiles | Given EX-Vault access code 1724 | -10/Exiles | Opened EX-Vault 1735 | -10/Exiles | Found Army-in-a-Box 1755 | -10/Exiles | Warned to stay clear of 0b10 Research branches 1786 | -10/Exiles | Met EX-DEC 1793 | -10/Exiles | Learned location of Zion (-6) 1858 | -10/Exiles | Discovered new exit (range 10) 1868 | -10/Exiles | Left Exiles lab with Army-in-a-Box 1868 | -10/Exiles | Entered Mines 1877 | -9/Mines | Discovered new exit (range 11) 2113 | -9/Mines | Entered Materials 2113 | -8/Materials | Evolved 4 slots: Utility x4 2114 | -8/Materials | Loaded intel: 19 trap records 2614 | -8/Materials | Build established: Mutant 2995 | -8/Materials | Identified exit to Garrison 3013 | -8/Materials | Entered Garrison 3036 | -8/Garrison | Triggered checkpoint 3175 | -8/Garrison | Discovered new exit (range 13) 3225 | -8/Garrison | Triggered checkpoint 3241 | -8/Garrison | Discovered new exit (range 18) 3241 | -8/Garrison | Discovered new exit (range 75) 3241 | -8/Garrison | Discovered new exit (range 54) 3451 | -8/Garrison | Spotted B-75 Beast 3585 | -8/Garrison | Garrison Relay disabled 3611 | -8/Garrison | Triggered checkpoint 3617 | -8/Garrison | Installed Relay Interface Framework 3898 | -8/Garrison | Expanded RIF knowledge: Structural Interface 3966 | -8/Garrison | Garrison Relay disabled 3983 | -8/Garrison | Garrison Relay disabled 4421 | -8/Garrison | Triggered checkpoint 4427 | -8/Garrison | Triggered checkpoint 4449 | -8/Garrison | Garrison Relay disabled 4452 | -8/Garrison | Build established: Commander-Mutant 4474 | -8/Garrison | Rescued a captive Derelict 4510 | -8/Garrison | Garrison Relay disabled 4645 | -8/Garrison | Lost 3 allies 4737 | -8/Garrison | Entered Factory 4737 | -7/Factory | Accompanied by 9 allies 4737 | -7/Factory | Evolved 2 slots: Utility x1, Weapon x1 5128 | -7/Factory | Build established: Commander-Skirmisher 5154 | -7/Factory | Lost 3 allies 5224 | -7/Factory | Identified exit to Storage 5224 | -7/Factory | Identified exit to Lower Caves 5327 | -7/Factory | Entered Lower Caves 5327 | -7/Lower Caves | Accompanied by 4 allies 5421 | -7/Lower Caves | Lost 3 allies 5618 | -7/Lower Caves | Spotted B-75 Beast 5657 | -7/Lower Caves | Destroyed B-75 Beast 5664 | -7/Lower Caves | Build established: Tank 5712 | -7/Lower Caves | Attracted the attention of an 0b10 checkpoint 6623 | -7/Lower Caves | Learned Factory emergency access door positions 7006 | -7/Lower Caves | Encountered a Warlord checkpoint 7173 | -7/Lower Caves | Discovered new exit (range 6) 7448 | -7/Lower Caves | Entered another Lower Caves area 7926 | -7/Lower Caves | Learned Factory security intel 8058 | -7/Lower Caves | Discovered new exit (range 15) 8306 | -7/Lower Caves | Entered Data Miner 8306 | -7/Data Miner | Discovered new exit (range 6) 8354 | -7/Data Miner | Met Data Miner 8404 | -7/Data Miner | Learned location of Section 7 (-2) 8404 | -7/Data Miner | Acquired the access code to Warlord's prototype stash 8446 | -7/Data Miner | Received God Mode back door access code from Data Miner 8546 | -7/Data Miner | Entered Proximity Caves 8729 | -6/Proximity Caves | Attracted the attention of an 0b10 checkpoint 8772 | -6/Proximity Caves | Lost 5 parts (1p1u3w) 8865 | -6/Proximity Caves | Found DCF Scrap (13 items) 9074 | -6/Proximity Caves | Learned Factory stockpile data 9133 | -6/Proximity Caves | Learned location of 1 exit from Factory 9192 | -6/Proximity Caves | Build established: Gunner 9530 | -6/Proximity Caves | Attracted the attention of an 0b10 base 9583 | -6/Proximity Caves | System corruption reached 10% 9613 | -6/Proximity Caves | Learned Armory trap positions 9613 | -6/Proximity Caves | Learned Armory emergency access door positions 9613 | -6/Proximity Caves | Learned Factory garrison access intel 9859 | -6/Proximity Caves | Build established: Mutant 10055 | -6/Proximity Caves | Discovered new exit (range 8) 10090 | -6/Proximity Caves | System corruption reached 30% 10093 | -6/Proximity Caves | Entered Factory 10093 | -6/Factory | Evolved 2 slots: Propulsion x2 10094 | -6/Factory | Identified exit to Factory 10098 | -6/Factory | Loaded intel: 4 garrison access locations 10450 | -6/Factory | Build established: Derelict-Skirmisher 10549 | -6/Factory | Fabricated Wave Gun (x2) 10807 | -6/Factory | Build established: Scavenger-Skirmisher 11374 | -6/Factory | Repaired Wave Gun 11476 | -6/Factory | Discovered exit to Factory (range 5) 11496 | -6/Factory | Garrison activated, responded to threat 11512 | -6/Factory | Identified exit to Garrison 11512 | -6/Factory | Entered Garrison 11512 | -6/Garrison | Accompanied by 1 ally 11696 | -6/Garrison | Triggered checkpoint 11712 | -6/Garrison | Triggered checkpoint 11806 | -6/Garrison | Garrison Relay disabled 11928 | -6/Garrison | Triggered checkpoint 11972 | -6/Garrison | Triggered checkpoint 12026 | -6/Garrison | Triggered checkpoint 12052 | -6/Garrison | Triggered checkpoint 12134 | -6/Garrison | Triggered checkpoint 12244 | -6/Garrison | Discovered new exit (range 10) 12252 | -6/Garrison | Found embedded Infiltrators 12575 | -6/Garrison | Discovered new exit (range 5) 12640 | -6/Garrison | Triggered checkpoint 12756 | -6/Garrison | Found Quantum Capacitor 12892 | -6/Garrison | Expanded RIF knowledge: Program Shield 12914 | -6/Garrison | Triggered checkpoint 12929 | -6/Garrison | Spotted B-75 Beast 12955 | -6/Garrison | Allies destroyed B-75 Beast 12983 | -6/Garrison | Lost 4 allies 12990 | -6/Garrison | Found Adv. Powered Armor 13009 | -6/Garrison | Found Fusion Bomb Launcher 13110 | -6/Garrison | Discovered new exit (range 10) 13124 | -6/Garrison | Entered Factory 13354 | -6/Factory | Build established: Tank 13572 | -6/Factory | Identified exit to Garrison 13572 | -6/Factory | Entered Garrison 13620 | -6/Garrison | Triggered checkpoint 13680 | -6/Garrison | Garrison Relay disabled 13829 | -6/Garrison | Triggered checkpoint 13845 | -6/Garrison | Triggered checkpoint 13970 | -6/Garrison | Build established: Mutant 13995 | -6/Garrison | Lost 3 parts (2u1w) 14141 | -6/Garrison | Discovered exit to Factory (range 10) 14222 | -6/Garrison | Lost 3 parts (1p1n1w) 14296 | -6/Garrison | Triggered checkpoint 14301 | -6/Garrison | Expanded RIF knowledge: Zone Cloak 14327 | -6/Garrison | Garrison Relay disabled 14478 | -6/Garrison | Build established: Scavenger-Tank 14494 | -6/Garrison | Triggered checkpoint 14535 | -6/Garrison | Discovered new exit (range 3) 14944 | -6/Garrison | Entered Factory 14944 | -5/Factory | Evolved 2 slots: Power x1, Utility x1 15525 | -5/Factory | Discovered new exit (range 16) 15781 | -5/Factory | Build established: Mutant 16596 | -5/Factory | Fabricated Lgt. Regenerative Plating? 17093 | -5/Factory | Discovered new exit (range 12) 17198 | -5/Factory | Identified exit to Upper Caves 17417 | -5/Factory | Build established: Scavenger-Mutant 18144 | -5/Factory | Sucked down chute 18144 | -5/Factory | Entered Waste 18145 | -5/Waste | Joined by Warlord forces that had cleared the area 18287 | -5/Waste | Discovered new exit (range 12) 18334 | -5/Waste | A Compactor rumbled back to life 18334 | -5/Waste | Spotted C-40 Crusher 18336 | -5/Waste | Allies destroyed C-40 Crusher 18890 | -5/Waste | Entered Factory 18890 | -5/Factory | Accompanied by 20 allies 19225 | -5/Factory | Repaired Cryofiber Web 19411 | -5/Factory | Build established: Mutant 19482 | -5/Factory | Lost 5 allies 19716 | -5/Factory | Lost 4 allies 19828 | -5/Factory | P-80 Master assimilated allied MN-6OW(g) 19904 | -5/Factory | Discovered exit to Upper Caves (range 15) 20044 | -5/Factory | Identified exit to Garrison 20045 | -5/Factory | Entered Garrison 20045 | -5/Garrison | Accompanied by 2 allies 20091 | -5/Garrison | Triggered checkpoint 20436 | -5/Garrison | Garrison Relay disabled 20538 | -5/Garrison | Spotted B-75 Beast 20745 | -5/Garrison | Destroyed B-75 Beast 20755 | -5/Garrison | Lost 3 allies 20766 | -5/Garrison | Destroyed 11 combat bots 20811 | -5/Garrison | Triggered checkpoint 20997 | -5/Garrison | Spotted Striker 20997 | -5/Garrison | Spotted Striker 21045 | -5/Garrison | Destroyed Striker 21050 | -5/Garrison | Lost 5 allies 21065 | -5/Garrison | Allies destroyed Striker 21111 | -5/Garrison | Triggered checkpoint 21334 | -5/Garrison | Discovered new exit (range 6) 21432 | -5/Garrison | Garrison Relay disabled 21554 | -5/Garrison | Discovered new exit (range 9) 21603 | -5/Garrison | Triggered checkpoint 21640 | -5/Garrison | Build established: Tank 21731 | -5/Garrison | Triggered checkpoint 21782 | -5/Garrison | Discovered new exit (range 5) 21806 | -5/Garrison | Expanded RIF knowledge: Command Fork 21825 | -5/Garrison | Triggered checkpoint 21936 | -5/Garrison | Entered Factory 21936 | -4/Factory | Accompanied by 3 allies 21936 | -4/Factory | Evolved 2 slots: Power x1, Utility x1 21937 | -4/Factory | Identified exit to Research 22686 | -4/Factory | First assault squad dispatched 22889 | -4/Factory | Lost 7 parts (2p1n3u1w) 22894 | -4/Factory | Destroyed 9 combat bots 22984 | -4/Factory | Lost 5 parts (1p3n1u) 23086 | -4/Factory | Lost 5 parts (1p2u2w) 23118 | -4/Factory | Sucked down chute 23118 | -4/Factory | Entered Waste 23119 | -4/Waste | Met a frightened Derelict 23131 | -4/Waste | Spotted C-40 Crusher 23133 | -4/Waste | EMP discharged 23133 | -4/Waste | System corruption reached 10% 23142 | -4/Waste | Crushed by Compactor (1 part destroyed, 1 dropped) 23145 | -4/Waste | Crushed by Compactor (1 part destroyed, 1 dropped) 23146 | -4/Waste | Released all parts (6) 23154 | -4/Waste | Spotted C-40 Crusher 23154 | -4/Waste | Spotted C-40 Crusher 23163 | -4/Waste | Spotted C-40 Crusher 23176 | -4/Waste | Lost 3 parts (1p2u) 23182 | -4/Waste | Spotted C-40 Crusher 23190 | -4/Waste | Spotted C-40 Crusher 23191 | -4/Waste | Discovered new exit (range 11) 23196 | -4/Waste | Entered Factory 23221 | -4/Factory | Core integrity fell below 50% 23238 | -4/Factory | Discovered exit to Research (range 15) 23241 | -4/Factory | Core integrity fell below 20% 23246 | -4/Factory | Entered Research 23246 | -3/Research | Evolved 2 slots: Utility x2 23292 | -3/Research | Discovered new exit (range 4) 23313 | -3/Research | Entered Testing 23314 | -3/Testing | Maximum security lockdown engaged 23451 | -3/Testing | Build established: Mutant 23605 | -3/Testing | System corruption reached 10% 23606 | -3/Testing | Core integrity fell below 50% 23622 | -3/Testing | Discovered new exit (range 13) 23624 | -3/Testing | Core integrity fell below 20% 23628 | -3/Testing | Entered Research 23628 | -2/Research | Evolved 2 slots: Propulsion x2 23635 | -2/Research | Lost 3 parts (1n2u) 23798 | -2/Research | Spotted B-90 Cyclops 23803 | -2/Research | Core integrity fell below 50% 23832 | -2/Research | Core integrity fell below 20% 23837 | -2/Research | Destroyed by S-43 Plague with Heavy Machine Gun Last Messages --------------- GOAL=ESCAPE 23628_ Receiving FarCom transmissions... 23642_ RIF reveals location of hidden door. 23666_ Acquired Adv. ECM Suite. 23737_ ALERT: All DSF locations entering lockdown mode. 23737_ Adv. ECM Suite destroyed. 23739_ RIF reveals location of hidden door. 23750_ Slug penetrates Wall. 23750_ Knocked back. 23752_ Penetrated by Slug. 23752_ Knocked back. 23756_ RIF reveals location of hidden door. 23768_ Slug penetrates Wall. 23799_ Detecting nearby Garrison Access. 23800_ Catalytron disabled. 23801_ ALERT: Potential suspicious activity detected, Programmers report to Research Zone 9Y. 23803_ K-01 Serf collects debris. 23804_ Terminal disabled. 23805_ K-01 Serf collects debris. Map ----- +----------------------------------------------------+ | ?????????????????????# ?????? | | ?????????????????????# ####+######+#####??????? | | ?????????????????????# #??????????????????????? | | ??????????+########### #??????????????????????? | | ????????? #??????????????????????? | | ????????? #??????????????????????? | | ????????? #??????????????????????? | | ????????? #??????????????????????? | | ?????????? ########## #??????????????????????? | | ?????????????????????# s #??????????????????????? | | ?????????????????????# #??????????????????????? | | ?????????????????????/t #??????????????????????? | | ?????????????????????# #??????????????????????? | | ?????????????????????# #??????????????????????? | | ?????????????????????# #??????????????????????? | | ?????????????????????# #??????????????????????? | | ?????????????????????# #??????????????????????? | | ?????????????????????# #??????????????????????? | | ?????????????????????# +??????????????????????? | | ?????????????????????# #??????????????????????? | | ?????????????????????# #??????????????????????? | | ?????????????????????# g #??????????????????????? | | ?????????????????????# gg #??????????????????????? | | ?????????????????????# g #??????????????????????? | | ?????????????????????# ########???????????????? | | ?????????????????????# @ +?????????????? | | ?????????????????????# ##### ##???????????????? | | ?????????????????????# #??????????????????????? | | ???????????Y???????? #??????????????????????? | | ???????????????????####+#+#??????????????????????? | | ????????????????????w????????????????????????????? | | ?????????????????????????????????????????????????? | | ?????????????????????????????????????????????????? | | ?????????????????????????????????????????????????? | | ?????????????????????????????????????????????????? | | ?????????????????????????????????????????????????? | | ?????????????????????????????????????????????????? | | ?????????????????????????????????????????????????? | | | | | | | | | | | | | | | | | | | | | | | | | +----------------------------------------------------+ Best States ------------- Heat Dissipation 147 Energy Generation 49 Energy Capacity 750 Matter Stores 300 Matter Capacity 300 Sight Range 16 Terrain Scan Density 10 Jamming Range 12 Additional Mass Support 6 Base Temperature (-) 100 Armor Coverage 750 Resistance: EM 15 Core Shielding 30 Weapon Cycling 25 Phase Shifting 10 Evasion (%) 63 Targeting Accuracy 12 Recoil Reduction 4 Energy Filtering 30 Offensive Hacking 14 Defensive Hacking 10 Relay Coupler Types 1 Relay Coupler Value 33 Authchip Count 1 Item Schematics ----------------- Combat Drone Bay | -7/Data Miner | Free Lgt. Regenerative Plating | -7/Data Miner | Free Gravity Neutralizer | -7/Data Miner | Free Cld. Aerolev Unit | -7/Data Miner | Free Gyrokinetic Inverter | -7/Data Miner | Free Lrn. Tractor Beam | -7/Data Miner | Free Imp. Heavy Laser | -7/Data Miner | Free Imp. Focal Shield | -7/Data Miner | Free Wave Gun | -7/Data Miner | Free Lrn. Sensor Array | -5/Factory | Hacked Robot Schematics ------------------ L-41 Fighter | -7/Data Miner | Free A-15 Conveyor | -7/Data Miner | Free Y-54 Guardian | -7/Data Miner | Free B-48 Gladiator | -7/Data Miner | Free Fabricated ------------ Wave Gun | x2 | -6/Factory Lgt. Regenerative Plating | x1 | -5/Factory Repaired ---------- Wave Gun | 56% | -6/Factory Cryofiber Web | 50% | -5/Factory Alien Tech Used ----------------- None Achievements -------------- None Challenges ------------ None Game ------ Seed SwarmSuperquantumCore Manual? 0 Play Time 03:39:50 Cumulative 136.8 hours Start 2025.08.16 @ 12:23:51 End 2025.08.16 @ 22:35:33 Sessions 3 Manual Loads 0 Difficulty Rogue Special Mode None Game No. 193 Rogue 193 Adventurer 0 Explorer 0 Win Type - Total 1 Types 1/0/0/0/0/0/0/0/0/0 Lore% 69 Gallery% 63 Achievement% 53 Wizard Run 0 Options --------- Layout 0 ASCII 0 Keyboard 0 Movement Mouse Keybinds 0 Fullscreen 1 Font 16/SmallcapsGlow Map View 75x55 Zoom Use 0% Tactical HUD 1 Map Filters NONE Filters NONE Steam 1 RUN: abc1d866-ab1a-4e8b-971a-30ed26ccf498